Cogmind - Beta 9.6 @@@ ROGUE MODE // 2020.05.29 @ 21:42:35 // AFD2020/Player2 Player: Valguris Result: Core destroyed Performance ------------- Evolutions (9) 4500 Regions Visited (30) 6000 Robots Destroyed (273) 1365 Value Destroyed (12990) 12990 Prototype IDs (127) 2540 Alien Tech Used (7) 1400 Bonus (16036) 16036 TOTAL SCORE: 44831 Bonus ------- Triggered High Security 1000 High Alert Combat Kills 5856 Follower Combat Kills 5178 Aligned with FarCom 300 Met Data Miner 300 Met Imprinter 300 Was Imprinted 300 Met Zhirov 300 Met Warlord at Base 500 MAIN.C Attacked Warlord 500 Used Core Reset Matrix 3000 Scanned by Researcher 500 Acquired SGEMP 2000 Friendly Fire -3998 Cogmind --------- Core Integrity 0/1600 Matter 290/300 Energy 790/790 System Corruption 8% Temperature Cool (0) Movement Rolling (150) Ox5 Location -1/Access Parts ------- > --- POWER (3) -------- Light Quantum Reactor Vortex Chain Reactor > --- PROPULSION (3) --- Compact Wheel Armored Huge Wheel > --- UTILITY (17) ----- Advanced Heat Sink Advanced Heat Sink Large Storage Unit High-capacity Storage Unit Humpback Spectral Analyzer Advanced Sensor Array Experimental Signal Interpreter Experimental Terrain Scan Processor Experimental Targeting Computer Precision Energy Filter Experimental Transmission Jammer Heavy Armor Plating Centrium Medium Armor Plating Improved Force Field > --- WEAPON (2) ------- Cooled Proton Cannon > --- INVENTORY (38) --- Wheel Wheel Armored Wheel Centrium Wheel Advanced Heat Sink Advanced Heat Sink Zionite Weapon Casing Ghost Barrier Mobile Refinery Mk. CCLXVII Dimensional Node Initializer Gamma Rifle Disruptor Cannon Heavy Neutron Cannon Heavy Neutron Cannon Nova Cannon Core Cannon Tri-rail Accelerator Heavy Shock Bomb Launcher Enhanced Gamma Bomb Array Mini Smartbomb Launcher Fusion Bomb Launcher Vortex Catalyst Activator Improved Remote Datajack Core Stripper Portable AFG (82) SGEMP Prototype Peak State ------------ > --- POWER ------------ Light Quantum Reactor Vortex Chain Reactor > --- PROPULSION ------- Armored Huge Wheel > --- UTILITY ---------- Advanced Cryofiber Web Advanced Heat Sink Advanced Heat Sink Humpback Humpback Spectral Analyzer Experimental Signal Interpreter Experimental Terrain Scan Processor Experimental Targeting Computer Precision Energy Filter Advanced Transmission Jammer Experimental Transmission Jammer Centrium Medium Armor Plating Experimental Hacking Suite Advanced Component Analysis Suite > --- WEAPON ----------- Core Stripper > --- INVENTORY -------- Wheel Armored Wheel Centrium Wheel Large Storage Unit Large Storage Unit High-capacity Storage Unit Experimental Terrain Scan Processor Zionite Weapon Casing Ghost Barrier Mobile Refinery Mk. CCLXVII Drone Bay Dimensional Node Initializer Transdimensional Reconstructor Transdimensional Reconstructor High-powered Transdimensional Reconstructor Gamma Rifle Gamma Rifle Cooled Proton Cannon Heavy Neutron Cannon Heavy Neutron Cannon Nova Cannon Enhanced Nova Cannon Core Cannon Tri-rail Accelerator Heavy Shock Bomb Launcher Heavy Shock Bomb Launcher Heavy Shock Bomb Launcher Heavy Shock Bomb Launcher Enhanced Gamma Bomb Array Mini Smartbomb Launcher Fusion Bomb Launcher Vortex Catalyst Activator Improved Remote Datajack Portable AFG SGEMP Prototype [Rating: 191] Favorites ----------- Power Cooled Deuterium Engine Engine Cooled Deuterium Engine Reactor Fusion Reactor Propulsion Wheel Treads Light Treads Wheel Wheel Flight Unit Cooled Nuclear Pulse Thruster Utility Large Storage Unit Device Long-range Sensor Array Storage Large Storage Unit Processor Advanced Signal Interpreter Hackware Experimental Hacking Suite Protection Medium Reactive Plating Artifact Stasis Generator Weapon Light EM Pulse Cannon Energy Gun Medium Laser Energy Cannon Light EM Pulse Cannon Ballistic Gun Minigun Ballistic Cannon Flak Cannon Launcher Heavy Shock Bomb Launcher Special Weapon Improved Remote Datajack Impact Weapon Core Stripper Slashing Weapon Chainsword Special Melee Weapon Datajack Build | -11 -10 -10 -10 -9 -8 -7 -7 -7 -7 -6 -6 -6 -6 -6 -5 -5 -5 -5 -5 -4 -4 -4 -4 -4 -3 -3 -3 -2 -2 -1 ------- Run | Scr Mat Min Exi Min Mat Fac Low Low Zio Pro Fac Low Low Dat Pro Fac Upp Upp War Pro Fac Upp Upp Zhi Pro Res Qua Res Tes Acc Slots Evolved 18 | . . . . . 4 2 . . . . 2 . . . . 2 . . . . 2 . . . . 2 . 2 . 2 Power 2 | . . . . . . 1 . . . . . . . . . . . . . . . . . . . . . . . 1 Propulsion 1 | . . . . . . 1 . . . . . . . . . . . . . . . . . . . . . . . . Utility 15 | . . . . . 4 . . . . . 2 . . . . 2 . . . . 2 . . . . 2 . 2 . 1 Weapon . | . . . . . . . . . . . . . . . . . . . . . . . . . . . . . . . Parts Attached 387 | 7 3 1 2 1 24 30 1 9 6 8 11 2 10 . 9 7 6 7 11 14 32 11 1 8 21 22 32 9 29 53 Power 14 | 1 . . . . 1 3 . . . . . . . . . . . . 2 . . . . 1 . . 1 1 1 3 Engine 7 | 1 . . . . 1 3 . . . . . . . . . . . . 1 . . . . . . . 1 . . . Core . | . . . . . . . . . . . . . . . . . . . . . . . . . . . . . . . Reactor 7 | . . . . . . . . . . . . . . . . . . . 1 . . . . 1 . . . 1 1 3 Propulsion 26 | 2 . . . . 2 2 1 1 . . . 2 . . . 1 . . . 1 2 1 . 2 . 3 1 . 2 3 Treads 2 | 2 . . . . . . . . . . . . . . . . . . . . . . . . . . . . . . Leg . | . . . . . . . . . . . . . . . . . . . . . . . . . . . . . . . Wheel 23 | . . . . . 2 2 1 1 . . . 2 . . . 1 . . . 1 2 1 . 1 . 3 1 . 2 3 Hover . | . . . . . . . . . . . . . . . . . . . . . . . . . . . . . . . Flight 1 | . . . . . . . . . . . . . . . . . . . . . . . . 1 . . . . . . Utility 145 | 2 1 . 1 . 8 9 . 2 3 1 7 . 1 . 2 4 . 7 5 8 17 6 1 3 11 8 12 5 6 15 Device 95 | . . . . . 4 4 . 2 2 . 5 . 1 . 2 2 . 4 3 5 14 6 1 3 11 4 5 5 5 7 Storage 16 | 2 1 . 1 . 2 . . . 1 . . . . . . . . 1 2 . 1 . . . . 1 2 . . 2 Processor 7 | . . . . . . 1 . . . . 1 . . . . 2 . 1 . . . . . . . 2 . . . . Hackware 5 | . . . . . . 2 . . . . . . . . . . . . . . . . . . . . . . 1 2 Protection 20 | . . . . . 2 2 . . . 1 1 . . . . . . 1 . 3 2 . . . . 1 3 . . 4 Artifact 2 | . . . . . . . . . . . . . . . . . . . . . . . . . . . 2 . . . Weapon 202 | 2 2 1 1 1 13 16 . 6 3 7 4 . 9 . 7 2 6 . 4 5 13 4 . 2 10 11 18 3 20 32 Energy Gun 16 | 2 1 . . . 6 2 . . . . . . . . . . . . . . . . . . . . 1 . 1 3 Energy Cannon 102 | . . . . . . 9 . 4 3 3 3 . 6 . 6 1 4 . 2 2 11 2 . 1 2 9 8 2 10 14 Ballistic Gun 4 | . . . . . 4 . . . . . . . . . . . . . . . . . . . . . . . . . Ballistic Cannon 8 | . . . . . . . . . . 1 . . . . . . 1 . . 1 1 . . . 4 . . . . . Launcher 57 | . 1 1 . 1 . 5 . 2 . 2 . . 3 . . . 1 . 1 2 1 1 . . 3 2 7 1 9 14 Special Weapon 9 | . . . . . . . . . . . 1 . . . 1 1 . . 1 . . 1 . 1 1 . 2 . . . Impact Weapon 1 | . . . . . . . . . . . . . . . . . . . . . . . . . . . . . . 1 Slashing Weapon 3 | . . . . . 2 . . . . 1 . . . . . . . . . . . . . . . . . . . . Piercing Weapon . | . . . . . . . . . . . . . . . . . . . . . . . . . . . . . . . Special Melee Weapon 2 | . . . 1 . 1 . . . . . . . . . . . . . . . . . . . . . . . . . Unidentified Prototypes 17 | . . . . . 2 1 . . 1 . . . . . . . . . 3 . . . . 3 . 2 2 . . 3 Parts Lost 40 | . . 1 . . 3 1 . . . 2 . . . . . . . . . 2 4 1 . . 2 3 4 . 5 12 Power 4 | . . . . . . . . . . . . . . . . . . . . . . . . . . . . . 1 3 Propulsion 12 | . . . . . 2 1 . . . . . . . . . . . . . 1 1 1 . . . 1 2 . 2 1 Utility 15 | . . . . . . . . . . 1 . . . . . . . . . 1 2 . . . 2 2 1 . 2 4 Weapon 9 | . . 1 . . 1 . . . . 1 . . . . . . . . . . 1 . . . . . 1 . . 4 Highest Loss Streak 4 | . . 1 . . 2 1 . . . 1 . . . . . . . . . 2 4 1 . . 2 3 2 . 2 4 Average Slot Usage (%) 95 | . 86 84 98 100 93 99 100 100 100 99 100 100 100 100 100 98 100 94 93 93 93 93 94 93 93 92 87 84 85 82 Engine 10 | . 14 14 14 14 9 15 15 15 15 15 13 13 13 13 13 11 11 11 9 5 5 5 5 5 5 4 3 1 . . Reactor 1 | . . . . . . . . . . . . . . . . . . . 1 5 5 5 5 4 5 4 4 6 7 7 Treads 2 | . 28 28 28 28 . . . . . . . . . . . . . . . . . . . . . . . . . . Wheel 16 | . . . . . 17 22 23 23 23 23 20 20 20 20 20 17 17 17 17 16 14 14 15 15 15 13 12 8 7 7 Device 12 | . . . . . 14 9 7 7 7 2 12 13 13 13 13 16 11 12 15 10 15 21 26 25 26 29 20 23 25 20 Storage 19 | . 15 14 26 28 25 23 23 23 23 30 26 26 26 26 26 23 23 13 12 17 15 15 15 15 13 9 9 8 8 8 Processor 9 | . . . . . . . 7 7 7 7 6 6 6 6 6 9 17 21 23 23 21 20 15 15 15 18 19 17 17 16 Protection 4 | . . . . . 8 7 7 7 6 4 6 6 6 6 6 5 5 3 . . 4 . . . . 1 5 8 8 4 Energy Gun 2 | . 28 15 14 14 6 4 . . . . . . . . . . . . . . . . . . . . . . . . Energy Cannon 8 | . . . . . . 10 15 7 12 10 13 13 12 13 13 11 9 11 9 6 9 4 5 2 6 6 6 3 5 2 Launcher 2 | . . 11 . 14 1 . . 7 2 . . . . . . . . . . 3 . 5 5 5 . 1 1 4 2 3 Naked Turns . | . . . . . . . . . . . . . . . . . . . . . . . . . . . . . . . Heaviest Build 256 | 15 27 24 38 40 87 108 100 105 103 111 120 120 122 117 117 121 122 192 169 179 188 175 173 173 168 182 256 233 236 252 Greatest Support 44 | 40 40 40 40 40 40 36 36 36 36 36 36 36 30 30 30 30 30 30 30 32 32 32 30 30 30 30 38 38 38 44 Greatest Overweight (x) 9 | . . . . . 3 2 2 2 2 3 3 3 4 3 3 4 4 6 5 5 5 8 5 8 5 9 8 6 8 8 Average Overweight (x) 3 | . . . . . 1 2 2 2 2 2 3 3 3 3 3 3 3 4 4 5 5 5 5 5 4 5 6 5 5 5 Largest Inventory Capacity 64 | 8 12 10 16 16 22 22 22 22 26 26 26 26 26 26 26 26 26 46 36 36 36 36 36 36 36 38 64 44 44 44 Average Capacity 27 | 5 9 10 15 16 20 22 22 22 22 26 26 26 26 26 26 26 26 29 31 36 36 36 36 36 34 31 43 44 44 42 Most Carried 44 | 6 8 8 14 16 22 22 22 22 26 26 26 26 26 26 26 26 26 30 36 36 36 36 36 36 36 32 44 44 44 43 Average Carried 26 | 3 5 7 11 15 19 21 22 21 22 25 25 25 25 26 26 25 26 28 31 35 34 35 35 35 32 31 41 43 43 39 Final Capacity 44 | 8 10 10 16 16 22 22 22 22 26 26 26 26 26 26 26 26 26 30 36 36 36 36 36 36 30 32 44 44 44 38 Final Carried 44 | 6 8 8 14 16 22 22 22 21 26 26 26 26 26 26 26 26 26 30 36 34 36 35 35 36 28 32 44 43 40 31 Class Distribution -------------------- 40% | Hauler-Mutant 35% | Messiah-Mutant 12% | Messiah-Skirmisher 11% | Mutant Dominant Class ---------------- Mutant | -10/Materials Mutant | -10/Mines Mutant | -10/Exiles Mutant | -9/Mines Hauler-Mutant | -8/Materials Hauler-Mutant | -7/Factory Hauler-Mutant | -7/Lower Caves Hauler-Mutant | -7/Lower Caves Hauler-Mutant | -7/Zion Messiah-Mutant | -6/Proximity Caves Messiah-Mutant | -6/Factory Messiah-Mutant | -6/Lower Caves Messiah-Mutant | -6/Lower Caves Messiah-Mutant | -6/Data Miner Messiah-Mutant | -5/Proximity Caves Messiah-Mutant | -5/Factory Messiah-Mutant | -5/Upper Caves Messiah-Mutant | -5/Upper Caves Messiah-Skirmisher | -5/Warlord Messiah-Mutant | -4/Proximity Caves Messiah-Skirmisher | -4/Factory Messiah-Mutant | -4/Upper Caves Messiah-Mutant | -4/Upper Caves Messiah-Mutant | -4/Zhirov Messiah-Skirmisher | -3/Proximity Caves Messiah-Skirmisher | -3/Research Messiah-Mutant | -3/Quarantine Messiah-Mutant | -2/Research Messiah-Skirmisher | -2/Testing Messiah-Mutant | -1/Access Resources | -11 -10 -10 -10 -9 -8 -7 -7 -7 -7 -6 -6 -6 -6 -6 -5 -5 -5 -5 -5 -4 -4 -4 -4 -4 -3 -3 -3 -2 -2 -1 ----------- Run | Scr Mat Min Exi Min Mat Fac Low Low Zio Pro Fac Low Low Dat Pro Fac Upp Upp War Pro Fac Upp Upp Zhi Pro Res Qua Res Tes Acc Matter Collected 6965 | 269 41 58 206 50 596 373 74 114 60 162 90 45 61 . 189 90 96 70 79 419 439 260 . 168 414 365 531 122 639 885 Remotely . | . . . . . . . . . . . . . . . . . . . . . . . . . . . . . . . Salvage Created 12941 | 70 74 72 . 34 1084 815 26 47 . 12 164 144 123 . 46 140 153 . . 558 1331 162 . . 261 566 1128 243 2020 3668 Parts 521 | 3 1 10 . 6 51 50 3 2 . 1 7 7 13 . 2 3 2 . . 29 50 9 . . 17 22 33 3 76 121 Haulers Intercepted 8 | . . . . . 4 . . . . . . . . . . . . . . . 2 . . . . 1 . . . 1 Recyclers Shooed 9 | . . . . . 1 . . . . . . . . . . . . . . . 1 . . . . 1 1 . . 5 Parts Field Recycled . | . . . . . . . . . . . . . . . . . . . . . . . . . . . . . . . Retrieved Matter . | . . . . . . . . . . . . . . . . . . . . . . . . . . . . . . . Parts Self-Destructed 164 | . . . . . . . 2 23 4 4 . 21 13 . 7 . 2 8 34 12 . 6 . . 28 . . . . . Prevented 27 | . . . . . . . . . . 6 . . . . . . . . 18 . . . . . 3 . . . . . Kills | -11 -10 -10 -10 -9 -8 -7 -7 -7 -7 -6 -6 -6 -6 -6 -5 -5 -5 -5 -5 -4 -4 -4 -4 -4 -3 -3 -3 -2 -2 -1 ------- Run | Scr Mat Min Exi Min Mat Fac Low Low Zio Pro Fac Low Low Dat Pro Fac Upp Upp War Pro Fac Upp Upp Zhi Pro Res Qua Res Tes Acc Combat Hostiles Destroyed 201 | . 2 4 . 3 14 19 . 1 . 1 4 2 8 . 1 1 2 . . 19 16 4 . . 6 7 17 1 31 38 Guns 11 | . 1 2 . . 6 2 . . . . . . . . . . . . . . . . . . . . . . . . Cannons 43 | . . . . . . 3 . . . . 4 2 2 . 1 . 1 . . . 13 . . . 4 . 2 . 6 5 AOE 116 | . 1 2 . 3 7 14 . 1 . 1 . . 6 . . . 1 . . 19 1 4 . . 2 5 12 . 21 16 Classes Destroyed 23 | 1 1 2 . . 7 2 1 . . . . . 1 . . . . . . 1 2 . . . . . 1 . 1 3 Worker 18 | . . . . . 1 3 . . . . 1 . . . . . . . . . 2 . . . . 1 . . 8 2 Builder 11 | . . . . . 3 2 . . . . . . . . . . . . . . . . . . . . . . 2 4 Tunneler 3 | . . 2 . . . . . . . . . . . . . . . . . . . . . . . . . . . 1 Hauler 8 | . . . . . 4 . . . . . . . . . . . . . . . 2 . . . . 1 . . . 1 Recycler 10 | 1 . . . . 2 . . . . . . . . . . . . . . . 1 . . . . 1 . 1 . 4 Minesweeper 2 | . . . . . . . 1 . . . . 1 . . . . . . . . . . . . . . . . . . Mechanic 2 | . . . . . . . . . . . . . . . . . . . . . 1 . . . . . . . 1 . Operator 5 | . . . . . . 2 . . . . . . . . . . . . . . 1 . . . . 1 . . . 1 Drone 1 | . . . . . . . . . . . . . . . . . . . . . . . . . . . . . . 1 Watcher 8 | . . . . . 1 2 . . . . . . . . . 1 . . . . . . . . . . 1 . 2 1 Swarmer 51 | . . 2 . 2 . 2 . . . 1 . . 8 . . . . . . 9 . . . . 2 3 3 . 9 10 Grunt 91 | . 2 2 . 1 9 14 . . . . 2 2 . . . . 2 . . 7 7 2 . . 1 2 12 . 12 14 Brawler 3 | . . . . . 1 . . 1 . . . . . . . . . . . . . . . . . . . . . 1 Duelist 3 | . . . . . . . . . . . . . . . . . . . . . 1 . . . . . . . 2 . Protector 3 | . . . . . . . . . . . . . . . . . . . . . . . . . . . 1 . . 2 Researcher 1 | . . . . . . . . . . . . . . . . . . . . . . . . . . . . . 1 . Sentry 11 | . . . . . 3 1 . . . . 1 . . . . 1 . . . . . . . . . 2 . 1 1 1 Hunter 19 | . . . . . 1 1 . . . . . . . . . . . . . . 4 2 . . 2 . . . 3 6 Programmer 14 | . . . . . . 1 . . . . 1 . . . 1 . . . . . 4 . . . . . 1 . 4 2 Executioner 1 | . . . . . . . . . . . . . . . . . . . . . . . . . . . . . . 1 Z-Heavy 1 | . . . . . . . . . . . . . 1 . . . . . . . . . . . . . . . . . Master Thief 4 | . . . . . . . . . . . . . . . . . . . . 3 . . . . 1 . . . . . Assembled 1 | . . . . . . . . . . . . . . . . . . . . . . . . . . . . . . 1 Best Kill Streak 22 | 1 2 4 . 2 5 7 1 1 . 1 3 2 4 . 1 1 2 . . 5 6 2 . . 2 5 5 1 10 22 Combat Bots Only 17 | . 2 3 . 2 5 6 . 1 . 1 2 1 4 . 1 1 2 . . 5 4 2 . . 2 3 5 1 8 17 Max Kills in Single Turn 4 | 1 1 2 . 1 3 3 1 1 . 1 2 1 2 . 1 1 1 . . 4 2 1 . . 1 2 3 1 4 3 Gunslinging . | . . . . . . . . . . . . . . . . . . . . . . . . . . . . . . . Exploded 4 | . 1 1 . 1 3 2 . 1 . 1 . . 2 . . . 1 . . 4 1 1 . . 1 2 3 . 3 3 Melee . | . . . . . . . . . . . . . . . . . . . . . . . . . . . . . . . Uniques/NPCs Destroyed 3 | . . . . . . . . . . . . . . . . . . . . . . . . . . . . . . 3 Svarog (-1/Access) Zhirov (-1/Access) Perun (-1/Access) Combat | -11 -10 -10 -10 -9 -8 -7 -7 -7 -7 -6 -6 -6 -6 -6 -5 -5 -5 -5 -5 -4 -4 -4 -4 -4 -3 -3 -3 -2 -2 -1 -------- Run | Scr Mat Min Exi Min Mat Fac Low Low Zio Pro Fac Low Low Dat Pro Fac Upp Upp War Pro Fac Upp Upp Zhi Pro Res Qua Res Tes Acc Damage Taken 8494 | . 127 140 . 98 218 486 . 90 . 267 247 81 190 . 11 70 19 68 . 304 986 12 . . 170 549 932 20 997 2412 Core 885 | . 17 32 . . 71 61 . . . 102 45 18 8 . . 8 . 7 . 17 122 . . . 34 91 19 . 71 162 Absorbed by Shields 1471 | . . . . . 16 184 . . . . 182 85 167 . 11 73 20 71 . . 179 12 . . 55 . . . 234 182 Core Remaining (%) 76 | 100 . . . 60 60 . . . . 69 . . . . 72 . . . . 96 . . . . 74 . 73 . 85 . Volleys Fired 574 | 3 4 9 . 4 60 33 1 4 7 15 17 14 11 . 9 11 5 2 3 28 55 12 2 3 38 24 74 7 62 57 Largest 2 | 2 2 1 . 1 2 2 2 2 2 2 2 2 2 . 2 2 2 2 1 2 2 1 1 1 2 2 2 2 2 2 Hottest 300 | 100 100 50 . 30 90 145 112 130 125 125 125 60 125 . 90 125 90 60 40 90 180 90 90 40 134 220 220 120 300 230 Shots Fired 938 | 6 7 9 . 4 115 57 2 8 8 25 33 28 15 . 11 20 7 4 3 33 108 12 2 3 69 37 101 10 101 100 Gun 151 | 6 6 5 . . 104 18 . . . . . . . . . . . . . . . . . . . . 3 . . 9 Cannon 570 | . . . . . . 27 2 6 8 21 32 28 9 . 9 18 5 4 . 15 108 2 2 . 65 28 75 4 59 43 Launcher 203 | . 1 4 . 4 11 12 . 2 . 4 . . 6 . . . 2 . . 18 . 8 . . 4 9 22 6 42 48 Special 14 | . . . . . . . . . . . 1 . . . 2 2 . . 3 . . 2 . 3 . . 1 . . . Kinetic 101 | . . . . . 73 . . . . 7 . . . . . . . . . 1 . . . . 20 . . . . . Thermal 395 | 6 6 5 . . 21 2 . 6 . 3 20 28 5 . 9 . 5 4 . 14 47 2 2 . 45 8 72 4 59 22 Explosive 95 | . 1 4 . 4 11 12 . 2 . 4 . . 6 . . . 2 . . 18 . 8 . . 4 8 4 . 5 2 Electromagnetic 332 | . . . . . 10 43 2 . 8 11 12 . 4 . . 18 . . . . 61 . . . . 20 24 6 37 76 Entropic 1 | . . . . . . . . . . . . . . . . . . . . . . . . . . 1 . . . . Robot Hit Streak 21 | 5 10 1 . . 8 8 8 9 . 6 6 7 4 . 4 3 6 5 8 13 14 8 . 11 21 12 12 10 14 15 Robot Miss Streak 8 | . 1 1 . 1 5 4 . 1 . 8 2 3 1 . 1 2 1 . . 2 2 . . . 5 1 6 . 3 3 Penetration Max . | . . . . . . . . . . . . . . . . . . . . . . . . . . . . . . . Secondary Targets . | . . . . . . . . . . . . . . . . . . . . . . . . . . . . . . . Shots Hit Robots 545 | 5 6 3 5 . 70 39 2 5 . 19 24 18 5 . 5 11 4 4 3 13 78 2 . 3 56 24 39 5 40 57 Core Hits 533 | 2 4 7 . 5 44 49 1 4 . 9 7 9 15 . 2 5 8 2 . 42 37 12 . . 22 16 43 3 81 104 Critical Hits 7 | . . . . . 1 1 . . . . . 1 . . . . . . . . . . . . . . 1 . 1 2 Critical Kills 4 | . . . . . 1 1 . . . . . . . . . . . . . . . . . . . . . . 1 1 Critical Parts Destroyed 3 | . . . . . . . . . . . . 1 . . . . . . . . . . . . . . 1 . . 1 Melee Attacks 19 | . . . 5 . 7 . . . . 4 . . . . . . . . . . . . . . . . . . . 3 Kinetic 3 | . . . . . . . . . . . . . . . . . . . . . . . . . . . . . . 3 Impact . | . . . . . . . . . . . . . . . . . . . . . . . . . . . . . . . Slashing 11 | . . . . . 7 . . . . 4 . . . . . . . . . . . . . . . . . . . . Piercing . | . . . . . . . . . . . . . . . . . . . . . . . . . . . . . . . Sneak Attacks 6 | . . . 5 . . . . . . . . . . . . . . . . . . . . . . . . . . 1 Combat Hostiles . | . . . . . . . . . . . . . . . . . . . . . . . . . . . . . . . Follow-up Attacks . | . . . . . . . . . . . . . . . . . . . . . . . . . . . . . . . Damage Inflicted 36987 | 62 130 353 . 391 1867 2082 61 266 . 709 856 434 895 . 134 360 376 117 . 2916 2722 1135 . . 1964 2171 3363 171 5285 8167 Guns 1639 | 62 63 52 . . 1003 194 . . . . . . . . . . . . . . . . . . . . 76 . . 189 Cannons 11041 | . . . . . . 466 20 115 . 401 661 434 118 . 134 228 53 117 . 203 2245 . . . 1554 698 1036 42 1057 1459 Explosions 24007 | . 67 293 . 391 864 1422 41 151 . 308 195 . 777 . . 132 323 . . 2713 477 1135 . . 410 1473 2251 129 4228 6227 Melee 292 | . . . . . . . . . . . . . . . . . . . . . . . . . . . . . . 292 Ramming 8 | . . 8 . . . . . . . . . . . . . . . . . . . . . . . . . . . . Kinetic 1457 | . . . . . 724 . . . . 105 . . . . . . . . . 7 . . . . 329 . . . . 292 Thermal 10094 | 62 63 52 . 206 225 225 41 115 . 53 671 434 127 . 134 132 53 117 . 196 1566 . . . 1225 207 1047 42 1397 1704 Explosive 12462 | . 67 293 . 185 770 1262 . 151 . 308 . . 704 . . . 323 . . 2713 . 1135 . . 410 860 954 . 1433 894 Electromagnetic 12353 | . . . . . 148 595 20 . . 243 185 . 64 . . 228 . . . . 1156 . . . . 491 1362 129 2455 5277 Impact . | . . . . . . . . . . . . . . . . . . . . . . . . . . . . . . . Slashing . | . . . . . . . . . . . . . . . . . . . . . . . . . . . . . . . Piercing . | . . . . . . . . . . . . . . . . . . . . . . . . . . . . . . . Entropic 613 | . . . . . . . . . . . . . . . . . . . . . . . . . . 613 . . . . Highest Corruption 8 | . . . . . . 2 . . . . 1 1 1 1 1 . . . 4 . 4 4 4 4 4 . 1 1 8 8 Average Corruption 3 | . . . . . . 1 . . . . 1 1 1 1 1 . . . 2 . 3 4 4 4 4 . 1 1 3 5 Corruption Purged 2 | . . . . . . 2 . . . . . . . . . . . . . . . . . . . . . . . . Effects 94 | . . . . . . . . . . . . . 1 1 3 . . . 1 . 11 11 7 8 14 . . . 21 16 Message Errors 22 | . . . . . . . . . . . . . . . 1 . . . . . 2 3 1 1 4 . . . 5 5 Matter Fused 12 | . . . . . . . . . . . . . . . . . . . . . 1 1 1 3 2 . . . 3 1 Heat Flow Errors 15 | . . . . . . . . . . . . . . . . . . . . . 3 2 2 1 3 . . . 2 2 Energy Discharges 14 | . . . . . . . . . . . . . 1 . . . . . 1 . 1 3 1 1 1 . . . 4 1 Data Loss (minor) 14 | . . . . . . . . . . . . . . 1 2 . . . . . 1 2 2 2 . . . . 2 2 Data Loss (major) 3 | . . . . . . . . . . . . . . . . . . . . . . . . . . . . . 1 2 Misfires 3 | . . . . . . . . . . . . . . . . . . . . . . . . . . . . . . 3 Targeting Errors 10 | . . . . . . . . . . . . . . . . . . . . . 3 . . . 3 . . . 4 . Weapon Failures 1 | . . . . . . . . . . . . . . . . . . . . . . . . . 1 . . . . . Overload Shots 4 | . . . . . . . . . . . . . . . . . . . . . . . . . . . . . . 4 Overflow Damage 1577 | . . . . 7 1 45 . . . 1 31 1 6 . 16 42 3 . . 202 76 60 . . 93 230 148 . 186 429 Projectiles 497 | . . . . . . 34 . . . 1 31 1 . . 16 . . . . 25 44 . . . 92 49 66 . 106 32 Explosions 1080 | . . . . 7 1 11 . . . . . . 6 . . 42 3 . . 177 32 60 . . 1 181 82 . 80 397 Melee . | . . . . . . . . . . . . . . . . . . . . . . . . . . . . . . . Knockbacks 31 | . . . . . . . . . . 7 . . . . . . . . . . . . . . 24 . . . . . Impact . | . . . . . . . . . . . . . . . . . . . . . . . . . . . . . . . Kinetic 28 | . . . . . . . . . . 6 . . . . . . . . . . . . . . 22 . . . . . Secondary 3 | . . . . . . . . . . 1 . . . . . . . . . . . . . . 2 . . . . . Self-Inflicted Damage 1172 | . . . . 68 4 23 . . . 145 . . 129 . . . . . . 48 155 . . . . . 58 20 121 401 Shots 43 | . . . . 3 1 2 . . . 3 . . 4 . . . . . . 1 2 . . . . . 4 1 8 14 Rammed 1 | . . 1 . . . . . . . . . . . . . . . . . . . . . . . . . . . . Targets Rammed 2 | . . 2 . . . . . . . . . . . . . . . . . . . . . . . . . . . . Kicked . | . . . . . . . . . . . . . . . . . . . . . . . . . . . . . . . Crushed 1 | . . 1 . . . . . . . . . . . . . . . . . . . . . . . . . . . . Highest Temperature 487 | 117 144 30 . 19 21 171 42 30 39 117 135 . 102 . 190 79 32 2 92 276 487 242 245 241 181 63 180 30 315 331 Average Temperature 83 | 59 69 11 . 10 11 57 25 12 27 41 49 . 50 . 87 39 17 2 47 91 131 48 84 92 75 31 70 15 107 125 Received Heat Transfer 1091 | . 75 72 . 9 87 168 . 24 . 9 29 24 8 . . 16 4 12 . 9 115 . . . . 51 105 . 89 185 Effects 4 | . . . . . . . . . . . . . . . . . . . . 1 3 . . . . . . . . . Shutdowns 1 | . . . . . . . . . . . . . . . . . . . . . 1 . . . . . . . . . Interference 1 | . . . . . . . . . . . . . . . . . . . . 1 . . . . . . . . . . Matter Decay 1 | . . . . . . . . . . . . . . . . . . . . . 1 . . . . . . . . . Short Circuit 1 | . . . . . . . . . . . . . . . . . . . . . 1 . . . . . . . . . Siege Activations . | . . . . . . . . . . . . . . . . . . . . . . . . . . . . . . . Robots Corrupted 33 | . . . . . . 1 . . . . . . . . . 1 . . . . 2 . . . . 2 3 1 4 19 Combat Hostiles 30 | . . . . . . . . . . . . . . . . 1 . . . . 2 . . . . 2 3 1 4 17 Parts Fried 110 | . . . . . . 3 . . . . . . . . . 2 . . . . 12 . . . . 6 16 2 15 54 Impact Corruptions . | . . . . . . . . . . . . . . . . . . . . . . . . . . . . . . . Robots Melted 1 | . . . . . 1 . . . . . . . . . . . . . . . . . . . . . . . . . Combat Hostiles 1 | . . . . . 1 . . . . . . . . . . . . . . . . . . . . . . . . . Parts Melted 13 | . 3 1 . . 3 1 . . . . . . . . . . . . . . 2 . . . 1 . 1 . 1 . Heat Transferred 10630 | 185 185 148 . 224 495 287 50 120 . 74 741 592 124 . 148 100 74 148 . 296 1576 . . . 1681 125 607 37 1117 1496 Parts Sabotaged . | . . . . . . . . . . . . . . . . . . . . . . . . . . . . . . . Parts Stolen 10 | . . . . . . . . . . 1 . . . . . . . . . 2 . . . . 7 . . . . . Parts Stripped . | . . . . . . . . . . . . . . . . . . . . . . . . . . . . . . . Power Chain Reactions 30 | . . . . . 1 3 1 . . . 1 . 1 . . . . . . . 2 . . . . . 1 . 7 13 Missiles Intercepted . | . . . . . . . . . . . . . . . . . . . . . . . . . . . . . . . Alert | -11 -10 -10 -10 -9 -8 -7 -7 -7 -7 -6 -6 -6 -6 -6 -5 -5 -5 -5 -5 -4 -4 -4 -4 -4 -3 -3 -3 -2 -2 -1 ------- Run | Scr Mat Min Exi Min Mat Fac Low Low Zio Pro Fac Low Low Dat Pro Fac Upp Upp War Pro Fac Upp Upp Zhi Pro Res Qua Res Tes Acc Peak Influence 3592 | 5 116 283 . 234 413 958 . . . . 412 . . . . 347 . . . . 968 . . . . 995 1581 955 2459 3592 Average Influence 716 | 1 58 155 . 131 304 649 . . . . 178 . . . . 126 . . . . 628 . . . . 526 957 921 1206 2363 Maximum Alert Level 5 | . . 1 . 1 2 3 . . . . 2 . . . . 1 . . . . 3 . . . . 3 4 3 5 5 Low Security (%) 27 | 100 100 85 . 79 18 11 . . . . 64 . . . . 85 . . . . . . . . . 19 . . . . Level 1 15 | . . 14 . 20 80 5 . . . . 26 . . . . 14 . . . . 15 . . . . 12 . . . . Level 2 13 | . . . . . . 24 . . . . 8 . . . . . . . . . 46 . . . . 34 13 . 18 . Level 3 27 | . . . . . . 57 . . . . . . . . . . . . . . 38 . . . . 32 48 100 49 . Level 4 7 | . . . . . . . . . . . . . . . . . . . . . . . . . . . 38 . 4 29 Level 5 4 | . . . . . . . . . . . . . . . . . . . . . . . . . . . . . 22 24 High Security 4 | . . . . . . . . . . . . . . . . . . . . . . . . . . . . . 4 45 Max Security . | . . . . . . . . . . . . . . . . . . . . . . . . . . . . . . . Squads Dispatched 64 | . 1 . . . 6 6 . . . . 3 . . . . 2 . . . . 7 . . . . 3 4 3 10 19 Investigation 6 | . 1 . . . 1 1 . . . . 1 . . . . . . . . . . . . . . 1 . 1 . . Extermination 10 | . . . . . . 2 . . . . . . . . . 1 . . . . 1 . . . . . 2 1 2 1 Reinforcement 16 | . . . . . 2 2 . . . . 2 . . . . 1 . . . . 1 . . . . . . 1 4 3 Assault 22 | . . . . . . 1 . . . . . . . . . . . . . . . . . . . 2 2 . 2 15 Garrison 10 | . . . . . 3 . . . . . . . . . . . . . . . 5 . . . . . . . 2 . Intercept . | . . . . . . . . . . . . . . . . . . . . . . . . . . . . . . . Construction Impeded 5 | . . . . . 1 1 . . . . . . . . . . . . . . . . . . . . . . 1 2 Haulers Reinforced 4 | . . . . . . . . . . . 1 . . . . . . . . . 1 . . . . . . . 1 1 Stealth | -11 -10 -10 -10 -9 -8 -7 -7 -7 -7 -6 -6 -6 -6 -6 -5 -5 -5 -5 -5 -4 -4 -4 -4 -4 -3 -3 -3 -2 -2 -1 --------- Run | Scr Mat Min Exi Min Mat Fac Low Low Zio Pro Fac Low Low Dat Pro Fac Upp Upp War Pro Fac Upp Upp Zhi Pro Res Qua Res Tes Acc Distress Signals 6 | . . . . . 2 1 . . . . . . . . . . . . . . 1 . . . . . . . . 2 Communications Jammed 79 | . . . . . . . . . . . . . . . . . . . . . 11 . . . 2 1 13 . 7 45 Distress Signals 62 | . . . . . . . . . . . . . . . . . . . . . 10 . . . 2 1 12 . 7 30 Times Spotted 381 | . 2 6 . 6 26 35 . 4 . 9 12 13 9 . 2 3 3 1 . 7 28 5 . . 14 16 33 1 54 92 Peak Tracking Total 17 | . 2 3 . 3 4 7 . 3 . 3 2 5 3 . 2 1 4 1 . 3 4 4 . . 2 4 5 1 5 17 Tactical Retreats 5 | . . . . . . . . . . 1 . . . . . . . . . . . . . . . . 1 . 1 2 Traps | -11 -10 -10 -10 -9 -8 -7 -7 -7 -7 -6 -6 -6 -6 -6 -5 -5 -5 -5 -5 -4 -4 -4 -4 -4 -3 -3 -3 -2 -2 -1 ------- Run | Scr Mat Min Exi Min Mat Fac Low Low Zio Pro Fac Low Low Dat Pro Fac Upp Upp War Pro Fac Upp Upp Zhi Pro Res Qua Res Tes Acc Traps Triggered 7 | . . . . . . 3 . . . . . . . . . 1 . . . . 1 . . . . . 1 . . 1 Indirectly . | . . . . . . . . . . . . . . . . . . . . . . . . . . . . . . . Trap Hack Attempts 20 | . . . . . 20 . . . . . . . . . . . . . . . . . . . . . . . . . Triggered . | . . . . . . . . . . . . . . . . . . . . . . . . . . . . . . . Disarmed . | . . . . . . . . . . . . . . . . . . . . . . . . . . . . . . . Reprogrammed 8 | . . . . . 2 6 . . . . . . . . . . . . . . . . . . . . . . . . Reused 1 | . . . . . . 1 . . . . . . . . . . . . . . . . . . . . . . . . Traps Extracted . | . . . . . . . . . . . . . . . . . . . . . . . . . . . . . . . Installed 7 | . . . . . . . 6 . . . . 1 . . . . . . . . . . . . . . . . . . Triggered 9 | . . . . . . 1 . . . . . . . . . . . . 7 . . . . . . 1 . . . . Machines | -11 -10 -10 -10 -9 -8 -7 -7 -7 -7 -6 -6 -6 -6 -6 -5 -5 -5 -5 -5 -4 -4 -4 -4 -4 -3 -3 -3 -2 -2 -1 ---------- Run | Scr Mat Min Exi Min Mat Fac Low Low Zio Pro Fac Low Low Dat Pro Fac Upp Upp War Pro Fac Upp Upp Zhi Pro Res Qua Res Tes Acc Machines Disabled 82 | . . . . 3 1 6 . . . . 6 . . . . 8 . . . . 14 . . . . 3 16 . 17 8 Max in Single Turn 8 | . . . . 3 1 1 . . . . . . . . . 8 . . . . . . . . . 1 1 . 1 2 Garrison Access 3 | . . . . . . 2 . . . . . . . . . . . . . . . . . . . 1 . . . . Machines Sabotaged . | . . . . . . . . . . . . . . . . . . . . . . . . . . . . . . . Garrisons Compromised 1 | . . . . . . 1 . . . . . . . . . . . . . . . . . . . . . . . . Overloaded Fab Kills . | . . . . . . . . . . . . . . . . . . . . . . . . . . . . . . . Fab Network Shutdowns . | . . . . . . . . . . . . . . . . . . . . . . . . . . . . . . . Hacking | -11 -10 -10 -10 -9 -8 -7 -7 -7 -7 -6 -6 -6 -6 -6 -5 -5 -5 -5 -5 -4 -4 -4 -4 -4 -3 -3 -3 -2 -2 -1 --------- Run | Scr Mat Min Exi Min Mat Fac Low Low Zio Pro Fac Low Low Dat Pro Fac Upp Upp War Pro Fac Upp Upp Zhi Pro Res Qua Res Tes Acc Machines Accessed 43 | . 2 1 5 . 1 4 . . . 1 2 . 1 4 . 2 . 1 3 . 2 . 2 9 . 1 1 . . 1 Terminals 7 | . 1 1 . . . 3 . . . 1 . . . . . . . . . . . . 1 . . . . . . . Fabricators 1 | . . . . . . . . . . . . . . . . 1 . . . . . . . . . . . . . . Repair Stations 2 | . . . . . . . . . . . . . . . . . . . . . . . . . . 1 . . . 1 Recycling Units 3 | . 1 . . . . . . . . . 1 . . . . . . . . . 1 . . . . . . . . . Scanalyzers 2 | . . . . . . . . . . . 1 . . . . 1 . . . . . . . . . . . . . . Garrison Access 4 | . . . . . 1 1 . . . . . . . . . . . . . . 1 . . . . . 1 . . . Total Hacks 184 | . 3 3 49 . 2 11 . . . 2 3 . 1 26 . 9 . 1 7 . 7 . 4 47 . 2 1 . . 6 Successful 160 | . 3 1 49 . . 6 . . . 1 1 . 1 26 . 6 . 1 7 . 2 . 3 47 . 1 . . . 5 Failed 24 | . . 2 . . 2 5 . . . 1 2 . . . . 3 . . . . 5 . 1 . . 1 1 . . 1 Catastrophic 5 | . . . . . . 1 . . . 1 1 . . . . 1 . . . . . . . . . . 1 . . . Database Lockouts . | . . . . . . . . . . . . . . . . . . . . . . . . . . . . . . . Manual 85 | . 4 3 1 . . 7 . . 1 1 14 . . . . 14 . . 2 . 9 . 1 . . 8 14 . 3 3 Terminals 20 | . 2 3 . . . 10 . . . 2 . . . . . . . . . . . . 3 . . . . . . . Fabricators 4 | . . . . . . . . . . . . . . . . 4 . . . . . . . . . . . . . . Repair Stations 8 | . . . . . . . . . . . . . . . . . . . . . . . . . . 2 . . . 6 Recycling Units 7 | . 1 . . . . . . . . . 1 . . . . . . . . . 5 . . . . . . . . . Scanalyzers 7 | . . . . . . . . . . . 2 . . . . 5 . . . . . . . . . . . . . . Garrison Access 6 | . . . . . 2 1 . . . . . . . . . . . . . . 2 . . . . . 1 . . . Terminal Hacks 141 | . 2 1 49 . . 3 . . . 1 . . 1 26 . . . 1 7 . . . 3 47 . . . . . . Record 98 | . . . 48 . . . . . . 1 . . . 11 . . . . . . . . 2 36 . . . . . . Part Schematic 10 | . . . . . . . . . . . . . . 7 . . . . . . . . . 3 . . . . . . Robot Schematic 6 | . . 1 . . . . . . . . . . . 5 . . . . . . . . . . . . . . . . Robot Analysis 6 | . 2 . . . . . . . . . . . . . . . . . . . . . . 4 . . . . . . Prototype ID Bank 12 | . . . . . . . . . . . . . . 3 . . . . 5 . . . . 4 . . . . . . Open Door 5 | . . . . . . . . . . . . . 1 . . . . 1 2 . . . 1 . . . . . . . Branch Access Points 1 | . . . . . . 1 . . . . . . . . . . . . . . . . . . . . . . . . Locate Traps 1 | . . . . . . 1 . . . . . . . . . . . . . . . . . . . . . . . . Reprogram Traps 1 | . . . . . . 1 . . . . . . . . . . . . . . . . . . . . . . . . EX-Prototype ID Bank 1 | . . . 1 . . . . . . . . . . . . . . . . . . . . . . . . . . . Fabricator Hacks 2 | . . . . . . . . . . . . . . . . 2 . . . . . . . . . . . . . . Load Schematic 1 | . . . . . . . . . . . . . . . . 1 . . . . . . . . . . . . . . Build 1 | . . . . . . . . . . . . . . . . 1 . . . . . . . . . . . . . . Repair Station Hacks 6 | . . . . . . . . . . . . . . . . . . . . . . . . . . 1 . . . 5 Scan Component 4 | . . . . . . . . . . . . . . . . . . . . . . . . . . 1 . . . 3 Repair 2 | . . . . . . . . . . . . . . . . . . . . . . . . . . . . . . 2 Recycling Unit Hacks 3 | . . . . . . . . . . . 1 . . . . . . . . . 2 . . . . . . . . . Retrieve Components 3 | . . . . . . . . . . . 1 . . . . . . . . . 2 . . . . . . . . . Scanalyzer 4 | . . . . . . . . . . . . . . . . 4 . . . . . . . . . . . . . . Insert Component 2 | . . . . . . . . . . . . . . . . 2 . . . . . . . . . . . . . . Analyze 2 | . . . . . . . . . . . . . . . . 2 . . . . . . . . . . . . . . Garrison Access Hacks . | . . . . . . . . . . . . . . . . . . . . . . . . . . . . . . . Unauthorized Hacks 4 | . 1 . . . . 3 . . . . . . . . . . . . . . . . . . . . . . . . Terminals 2 | . . . . . . 2 . . . . . . . . . . . . . . . . . . . . . . . . Assimilate 1 | . . . . . . 1 . . . . . . . . . . . . . . . . . . . . . . . . Botnet 1 | . . . . . . 1 . . . . . . . . . . . . . . . . . . . . . . . . Fabricators . | . . . . . . . . . . . . . . . . . . . . . . . . . . . . . . . Repair Stations . | . . . . . . . . . . . . . . . . . . . . . . . . . . . . . . . Recycling Units 1 | . 1 . . . . . . . . . . . . . . . . . . . . . . . . . . . . . Tunnel 1 | . 1 . . . . . . . . . . . . . . . . . . . . . . . . . . . . . Scanalyzers . | . . . . . . . . . . . . . . . . . . . . . . . . . . . . . . . Garrison Access 1 | . . . . . . 1 . . . . . . . . . . . . . . . . . . . . . . . . Jam 1 | . . . . . . 1 . . . . . . . . . . . . . . . . . . . . . . . . Data Cores Recovered 1 | . . . . . . . . . . . . . . . . 1 . . . . . . . . . . . . . . Used . | . . . . . . . . . . . . . . . . . . . . . . . . . . . . . . . Hacking Detections 16 | . 1 1 . . 1 3 . . . 1 1 . . . . 2 . . . . 2 . 1 . . 1 1 . . 1 Full Trace Events 1 | . . . . . . . . . . . 1 . . . . . . . . . . . . . . . . . . . Feedback Events . | . . . . . . . . . . . . . . . . . . . . . . . . . . . . . . . Feedback Blocked . | . . . . . . . . . . . . . . . . . . . . . . . . . . . . . . . Robot Schematics Acquired 11 | . . 1 . . . . . . . . . . . 5 . . . . . . . . . . . . 5 . . . Robots Built . | . . . . . . . . . . . . . . . . . . . . . . . . . . . . . . . Matter . | . . . . . . . . . . . . . . . . . . . . . . . . . . . . . . . Time . | . . . . . . . . . . . . . . . . . . . . . . . . . . . . . . . Total Robot Build Rating . | . . . . . . . . . . . . . . . . . . . . . . . . . . . . . . . Part Schematics Acquired 38 | . . . . . . . . . . . 8 . . 7 . 10 . . . . 10 . . 3 . . . . . . Parts Built 1 | . . . . . . . . . . . . . . . . 1 . . . . . . . . . . . . . . Matter 318 | . . . . . . . . . . . . . . . . 318 . . . . . . . . . . . . . . Time 84 | . . . . . . . . . . . . . . . . 84 . . . . . . . . . . . . . . Total Part Build Rating 6 | . . . . . . . . . . . . . . . . 6 . . . . . . . . . . . . . . Parts Repaired 2 | . . . . . . . . . . . . . . . . . . . . . . . . . . . . . . 2 Time 50 | . . . . . . . . . . . . . . . . . . . . . . . . . . . . . . 50 Parts Recycled . | . . . . . . . . . . . . . . . . . . . . . . . . . . . . . . . Recycled Matter . | . . . . . . . . . . . . . . . . . . . . . . . . . . . . . . . Retrieved Matter . | . . . . . . . . . . . . . . . . . . . . . . . . . . . . . . . Retrieved Components 4 | . . . . . . . . . . . 1 . . . . . . . . . 3 . . . . . . . . . Parts Scanalyzed 1 | . . . . . . . . . . . . . . . . 1 . . . . . . . . . . . . . . Part Schematics Acquired . | . . . . . . . . . . . . . . . . . . . . . . . . . . . . . . . Parts Damaged . | . . . . . . . . . . . . . . . . . . . . . . . . . . . . . . . Bothacking | -11 -10 -10 -10 -9 -8 -7 -7 -7 -7 -6 -6 -6 -6 -6 -5 -5 -5 -5 -5 -4 -4 -4 -4 -4 -3 -3 -3 -2 -2 -1 ------------ Run | Scr Mat Min Exi Min Mat Fac Low Low Zio Pro Fac Low Low Dat Pro Fac Upp Upp War Pro Fac Upp Upp Zhi Pro Res Qua Res Tes Acc Used RIF Installer . | . . . . . . . . . . . . . . . . . . . . . . . . . . . . . . . Robots Hacked 14 | . . . 4 . . . . . . . 1 . . . 1 1 . . 2 . . 1 . 3 . . 1 . . . Non-combat 5 | . . . 3 . . . . . . . . . . . . 1 . . . . . . . . . . 1 . . . Combat 9 | . . . 1 . . . . . . . 1 . . . 1 . . . 2 . . 1 . 3 . . . . . . Robot Hacks Applied 14 | . . . 4 . . . . . . . 1 . . . 1 1 . . 2 . . 1 . 3 . . 1 . . . parse_system 14 | . . . 4 . . . . . . . 1 . . . 1 1 . . 2 . . 1 . 3 . . 1 . . . Relay Couplers Released 2 | . . . . . . 2 . . . . . . . . . . . . . . . . . . . . . . . . Machine Destruction 2 | . . . . . . 2 . . . . . . . . . . . . . . . . . . . . . . . . Robots Rewired 1 | . . . . . . . . . . . . . . . . . . . . . . 1 . . . . . . . . Allies Hacked . | . . . . . . . . . . . . . . . . . . . . . . . . . . . . . . . Hacks Repelled . | . . . . . . . . . . . . . . . . . . . . . . . . . . . . . . . Allies | -11 -10 -10 -10 -9 -8 -7 -7 -7 -7 -6 -6 -6 -6 -6 -5 -5 -5 -5 -5 -4 -4 -4 -4 -4 -3 -3 -3 -2 -2 -1 -------- Run | Scr Mat Min Exi Min Mat Fac Low Low Zio Pro Fac Low Low Dat Pro Fac Upp Upp War Pro Fac Upp Upp Zhi Pro Res Qua Res Tes Acc Total Allies 46 | . 1 . . . . 4 . . 9 . 5 . . . 1 1 . . . . 4 1 . . . 1 . . . 19 Largest Group 10 | . 1 1 1 1 1 5 1 1 10 10 5 4 1 1 2 3 2 2 2 2 5 5 4 4 4 3 1 1 1 9 Highest-Rated Group 375 | . 57 58 60 60 91 204 103 103 375 375 326 326 127 124 218 257 231 232 248 248 321 331 284 284 284 236 196 199 224 242 Highest-Rated Ally 242 | . 57 58 60 60 91 103 103 103 104 104 121 126 127 124 124 137 137 138 154 154 165 165 167 167 168 192 196 199 224 242 Zionite Dispatches 5 | . . . . . . . . . . . 2 . . . . 1 . . . . 1 . . . . 1 . . . . Heavy 1 | . . . . . . . . . . . 1 . . . . . . . . . . . . . . . . . . . Fire 2 | . . . . . . . . . . . 1 . . . . . . . . . 1 . . . . . . . . . Infowar Resupply 2 | . . . . . . . . . . . . . . . . 1 . . . . . . . . . 1 . . . . Total Orders 15 | . . . . . . . . . . . . . . . . 5 . . . . . 2 . . . 5 . . 2 1 STAY 1 | . . . . . . . . . . . . . . . . . . . . . . 1 . . . . . . . . GOTO 9 | . . . . . . . . . . . . . . . . 3 . . . . . . . . . 4 . . 2 . FOLLOW 2 | . . . . . . . . . . . . . . . . 1 . . . . . 1 . . . . . . . . DROP 2 | . . . . . . . . . . . . . . . . 1 . . . . . . . . . 1 . . . . EXPLORE 1 | . . . . . . . . . . . . . . . . . . . . . . . . . . . . . . 1 Ally Attacks 561 | . 6 4 . 5 46 23 . 4 . 61 38 27 10 . 4 8 7 4 . 18 49 14 . . 64 18 21 . 35 95 Total Damage 29413 | . 34 66 . 50 631 791 . 261 30 1719 2186 1262 311 . 160 233 277 107 . 934 2544 464 . . 1696 1941 2756 . 4402 6558 Kills 180 | . . 4 . 3 5 5 . 3 . 13 15 9 4 . 1 2 2 1 . 2 10 3 . . 8 9 15 . 26 40 Allies Corrupted . | . . . . . . . . . . . . . . . . . . . . . . . . . . . . . . . Allies Melted . | . . . . . . . . . . . . . . . . . . . . . . . . . . . . . . . Intel | -11 -10 -10 -10 -9 -8 -7 -7 -7 -7 -6 -6 -6 -6 -6 -5 -5 -5 -5 -5 -4 -4 -4 -4 -4 -3 -3 -3 -2 -2 -1 ------- Run | Scr Mat Min Exi Min Mat Fac Low Low Zio Pro Fac Low Low Dat Pro Fac Upp Upp War Pro Fac Upp Upp Zhi Pro Res Qua Res Tes Acc Robot Analysis Total 6 | . 2 . . . . . . . . . . . . . . . . . . . . . . 4 . . . . . . Derelict Logs Recovered 15 | . . . . 2 . . 2 1 1 2 . 1 . . 1 . 3 . . 1 . 1 . . . . . . . . Drone Launches 4 | . . . . . . . . . . . . . . . . . . . . . . . . . . . . . 2 2 Drone Recoveries . | . . . . . . . . . . . . . . . . . . . . . . . . . . . . . . . Zionite Intel Received 8 | . . . . . . . . . . . 2 . . . . 2 . . . . 1 . . . . . 3 . . . Component Stockpiles 1 | . . . . . . . . . . . . . . . . . . . . . . . . . . . 1 . . . Prototype Stockpiles 1 | . . . . . . . . . . . . . . . . . . . . . . . . . . . 1 . . . Prototype Schematics 3 | . . . . . . . . . . . 1 . . . . 1 . . . . 1 . . . . . . . . . Unaware Schematics 1 | . . . . . . . . . . . . . . . . . . . . . . . . . . . 1 . . . Unaware Analyses 1 | . . . . . . . . . . . . . . . . 1 . . . . . . . . . . . . . . Depthwide Sectors/0 1 | . . . . . . . . . . . 1 . . . . . . . . . . . . . . . . . . . Exploration | -11 -10 -10 -10 -9 -8 -7 -7 -7 -7 -6 -6 -6 -6 -6 -5 -5 -5 -5 -5 -4 -4 -4 -4 -4 -3 -3 -3 -2 -2 -1 ------------- Run | Scr Mat Min Exi Min Mat Fac Low Low Zio Pro Fac Low Low Dat Pro Fac Upp Upp War Pro Fac Upp Upp Zhi Pro Res Qua Res Tes Acc Turns Passed 22894 | 95 237 498 1038 556 917 1039 286 336 7250 501 577 261 246 89 241 535 539 196 673 519 667 398 306 342 502 810 1101 305 1064 770 Spaces Moved 11502 | 46 128 297 537 339 510 777 255 274 2047 380 413 190 179 79 179 377 236 138 523 330 328 253 231 221 235 488 555 146 528 283 Core 3 | 3 . . . . . . . . . . . . . . . . . . . . . . . . . . . . . . Treads 1362 | 43 128 297 537 339 18 . . . . . . . . . . . . . . . . . . . . . . . . . Legs . | . . . . . . . . . . . . . . . . . . . . . . . . . . . . . . . Wheels 10137 | . . . . . 492 777 255 274 2047 380 413 190 179 79 179 377 236 138 523 330 328 253 231 221 235 488 555 146 528 283 Hover . | . . . . . . . . . . . . . . . . . . . . . . . . . . . . . . . Flight . | . . . . . . . . . . . . . . . . . . . . . . . . . . . . . . . Fastest Speed 50 | 50 160 160 160 160 100 106 106 106 106 106 116 110 110 110 110 110 110 120 120 130 133 130 130 130 120 120 140 140 140 140 Average Speed 124 | 152 160 160 160 160 109 106 106 106 106 110 116 110 110 110 110 110 118 123 122 131 133 131 130 130 126 134 146 144 147 150 Slowest Speed 180 | 160 160 160 160 160 160 106 106 106 106 116 116 116 120 110 110 120 120 140 130 133 133 160 130 160 130 170 160 150 180 180 Overloaded Moves . | . . . . . . . . . . . . . . . . . . . . . . . . . . . . . . . Propulsion Burnouts . | . . . . . . . . . . . . . . . . . . . . . . . . . . . . . . . Robots Hopped . | . . . . . . . . . . . . . . . . . . . . . . . . . . . . . . . Cave-ins Triggered . | . . . . . . . . . . . . . . . . . . . . . . . . . . . . . . . Teleports 3 | . . . . . . . . . . . . . . . . . . . . . . . . . . . . . . 3 Exploration Rate (%) 43 | 4 28 43 95 66 44 23 50 53 91 63 20 52 25 68 44 9 45 26 83 56 13 40 47 62 45 18 65 3 64 14 Regions Visited 30 Branch Regions 21 Pre-discovered Areas 17 | . 1 1 1 . . . . . 1 2 6 . . 1 . . . . . . . 1 . 3 . . . . . . Known Exits Taken 22 | . . . . . . 1 1 1 1 1 1 1 . . 1 1 1 1 1 1 1 1 1 1 1 1 1 1 1 . Unknown Exits Taken 8 | 1 1 1 1 1 1 . . . . . . . 1 1 . . . . . . . . . . . . . . . . Scrap Searched 19 | . . 2 . . . . 2 . 2 2 . 1 1 . . . 2 4 . 2 . 1 . . . . . . . . Spaces Dug 197 | . . . . . 7 8 . . . 24 . . 42 . 2 . 1 . . 5 1 2 2 . 1 2 24 3 57 16 Terrain Destroyed 1297 | . 6 23 . 39 51 80 3 11 . 44 5 3 65 . 5 37 22 . . 215 13 136 2 . 53 102 137 3 135 107 Melee 11 | . . . . . 7 . . . . 4 . . . . . . . . . . . . . . . . . . . . Projectile 115 | . . . . . . . . 1 . . . 3 2 . 5 . 1 . . 6 5 2 2 . 7 3 38 3 30 7 AOE 1171 | . 6 23 . 39 44 80 3 10 . 40 5 . 63 . . 37 21 . . 209 8 134 . . 46 99 99 . 105 100 Actions | -11 -10 -10 -10 -9 -8 -7 -7 -7 -7 -6 -6 -6 -6 -6 -5 -5 -5 -5 -5 -4 -4 -4 -4 -4 -3 -3 -3 -2 -2 -1 --------- Run | Scr Mat Min Exi Min Mat Fac Low Low Zio Pro Fac Low Low Dat Pro Fac Upp Upp War Pro Fac Upp Upp Zhi Pro Res Qua Res Tes Acc Total 19064 | 61 154 310 713 348 759 938 269 308 7118 428 478 214 212 81 208 480 484 160 554 373 440 303 236 272 362 606 736 230 719 510 Wait 6135 | . 10 1 153 3 89 59 6 17 5045 19 24 5 . 3 12 73 238 4 . . 15 21 . 33 58 39 40 60 41 67 Move 11472 | 45 127 296 536 338 509 776 254 273 2046 379 412 189 178 78 178 376 235 137 522 329 327 252 230 220 234 487 554 145 527 283 Hop . | . . . . . . . . . . . . . . . . . . . . . . . . . . . . . . . Pick Up 231 | 6 5 1 12 2 26 19 . 2 9 3 8 1 6 . . 6 . 4 8 2 8 3 1 2 5 17 17 4 28 26 Fast Attach 67 | 7 . . . . 8 2 . . 1 . 1 . . . . 2 . 2 6 . 1 1 . 5 2 4 15 2 1 7 Attach 79 | . . 1 1 . 4 6 . . . 2 2 2 . . . 2 . 2 2 2 8 2 . . 2 8 5 2 8 18 Detach 25 | . . . . . 1 3 . . . . . . . . . 1 . 2 . . 2 1 . . . 3 4 . 2 6 Swap 246 | . 3 . 1 1 12 22 1 9 5 6 8 . 10 . 9 3 6 3 3 12 23 8 1 4 17 10 13 5 20 31 Drop 177 | . 5 . 5 . 23 18 1 3 5 . 6 2 7 . . 6 . 4 10 . 1 3 2 5 6 14 14 5 29 3 Fire 574 | 3 4 9 . 4 60 33 1 4 7 15 17 14 11 . 9 11 5 2 3 28 55 12 2 3 38 24 74 7 62 57 Melee 19 | . . . 5 . 7 . . . . 4 . . . . . . . . . . . . . . . . . . . 3 Ram . | . . . . . . . . . . . . . . . . . . . . . . . . . . . . . . . Kick . | . . . . . . . . . . . . . . . . . . . . . . . . . . . . . . . Crush 2 | . . 2 . . . . . . . . . . . . . . . . . . . . . . . . . . . . Escape Stasis 8 | . . . . . . . . . . . . . . . . . . . . . . . . . . . . . . 8 Rewire . | . . . . . . . . . . . . . . . . . . . . . . . . . . . . . . . Trap 27 | . . . . . 20 . 6 . . . . 1 . . . . . . . . . . . . . . . . . . Miscellaneous 2 | . . . . . . . . . . . . . . . . . . . . . . . . . . . . . 1 1 Route ------- -11/Scrapyard -10/Materials -10/Mines (discovered 2 exits: [*Mat] / *Exi) -10/Exiles (discovered 2 exits: [*Min x2]) -9/Mines -8/Materials -7/Factory (discovered 5 exits: *Fac / Sto x2 / *Low x2) -7/Lower Caves -7/Lower Caves (discovered 2 exits: *Fac / *Zio) -7/Zion -6/Proximity Caves -6/Factory (discovered 3 exits: *Fac x2 / *Low) -6/Lower Caves -6/Lower Caves -6/Data Miner -5/Proximity Caves -5/Factory (discovered 2 exits: *Upp / [Ext]) -5/Upper Caves -5/Upper Caves -5/Warlord -4/Proximity Caves -4/Factory (discovered 2 exits: Res / *Upp) -4/Upper Caves -4/Upper Caves (discovered 2 exits: *Res / *Zhi) -4/Zhirov -3/Proximity Caves -3/Research (discovered 3 exits: Res / Arm / *Qua) -3/Quarantine -2/Research -2/Testing -1/Access History --------- Turn | Location | Event 43 | -11/Scrapyard | Discovered new exit (range 15) 96 | -11/Scrapyard | Entered Materials 293 | -10/Materials | Discovered new exit (range 15) 300 | -10/Materials | Build established: Mutant 333 | -10/Materials | Entered Mines 333 | -10/Mines | Accompanied by 1 ally 334 | -10/Mines | Learned location of Storage (-7) 739 | -10/Mines | Deemed a non-threat by the Exiles lab entrance 739 | -10/Mines | Discovered new exit (range 5) 774 | -10/Mines | Discovered new exit (range 5) 831 | -10/Mines | Entered Exiles 831 | -10/Exiles | Accompanied by 1 ally 856 | -10/Exiles | Discovered new exit (range 15) 930 | -10/Exiles | Met 8R-AWN 959 | -10/Exiles | Met EX-HEX 1106 | -10/Exiles | Visited The Gauntlet 1305 | -10/Exiles | Met EX-DEC 1345 | -10/Exiles | Learned location of Zion (-7) 1393 | -10/Exiles | Met EX-BIN 1417 | -10/Exiles | Aligned with FarCom system 1419 | -10/Exiles | Given EX-Vault access code 1481 | -10/Exiles | Opened EX-Vault 1489 | -10/Exiles | Found YOLO Cannon 1528 | -10/Exiles | Found Deploy-a-Sentry 1533 | -10/Exiles | Found Deploy-a-Sentry 1554 | -10/Exiles | Found Deploy-a-Sentry 1591 | -10/Exiles | Warned to stay clear of 0b10 Research branches 1855 | -10/Exiles | Discovered new exit (range 11) 1869 | -10/Exiles | Stole three prototypes: Deploy-a-Sentry, Skeleton Box, YOLO Cannon 1869 | -10/Exiles | Entered Mines 1869 | -9/Mines | Accompanied by 1 ally 1889 | -9/Mines | Received a Rocket Launcher from a helpful Derelict 2094 | -9/Mines | Learned Materials garrison access intel 2134 | -9/Mines | Learned Materials stockpile data 2386 | -9/Mines | Discovered new exit (range 9) 2425 | -9/Mines | Entered Materials 2425 | -8/Materials | Accompanied by 1 ally 2425 | -8/Materials | Evolved 4 slots: Utility x4 2427 | -8/Materials | Loaded intel: 1 garrison access location 2943 | -8/Materials | Build established: Hauler-Mutant 3011 | -8/Materials | Garrison activated, responded to threat 3280 | -8/Materials | Discovered new exit (range 15) 3342 | -8/Materials | Entered Factory 3342 | -7/Factory | Accompanied by 1 ally 3342 | -7/Factory | Evolved 2 slots: Power x1, Propulsion x1 3344 | -7/Factory | FarCom data flow suspended 3937 | -7/Factory | Discovered new exit (range 15) 4146 | -7/Factory | Identified exit to Storage 4146 | -7/Factory | Identified exit to Lower Caves 4381 | -7/Factory | Entered Lower Caves 4381 | -7/Lower Caves | Accompanied by 1 ally 4496 | -7/Lower Caves | Learned location of 1 exit from Factory 4507 | -7/Lower Caves | Learned location of 1 exit from Factory 4653 | -7/Lower Caves | Discovered new exit (range 7) 4658 | -7/Lower Caves | Identified exit to Lower Caves 4667 | -7/Lower Caves | Entered another Lower Caves area 4667 | -7/Lower Caves | Accompanied by 1 ally 4681 | -7/Lower Caves | Discovered new exit (range 15) 4763 | -7/Lower Caves | Spotted B-75 Beast 4777 | -7/Lower Caves | Allies destroyed B-75 Beast 4823 | -7/Lower Caves | Encountered a Warlord checkpoint 4908 | -7/Lower Caves | Learned Factory emergency access door positions 4985 | -7/Lower Caves | Discovered new exit (range 5) 4989 | -7/Lower Caves | Identified exit to Zion 5003 | -7/Lower Caves | Entered Zion 5003 | -7/Zion | Accompanied by 1 ally 5098 | -7/Zion | Received a hallucinogenic algorithm 5140 | -7/Zion | Discovered new exit (range 16) 5179 | -7/Zion | Found Prototype Device 5180 | -7/Zion | Identified Mobile Refinery Mk. CCLXVII 5390 | -7/Zion | Learned location of Recycling (-7) 5551 | -7/Zion | Visited the Megawrench Repair Shop 5756 | -7/Zion | Learned 4 Factory zone layouts 6078 | -7/Zion | Megawrench repaired 8 parts 11551 | -7/Zion | Found Prototype Processor 11555 | -7/Zion | Found Prototype Processor 11560 | -7/Zion | Found Prototype Processor 11564 | -7/Zion | Found Exp. Targeting Computer 11714 | -7/Zion | Gained Derelict followers 11899 | -7/Zion | Imprinted 11901 | -7/Zion | Declared Zion's savior 12185 | -7/Zion | Identified exit to Proximity Caves 12192 | -7/Zion | Build established: Messiah-Mutant 12253 | -7/Zion | Entered Proximity Caves 12253 | -6/Proximity Caves | Accompanied by 10 allies 12329 | -6/Proximity Caves | Learned location of Extension (-5) 12441 | -6/Proximity Caves | Spotted OF-8KK(f) 12442 | -6/Proximity Caves | Encountered a Master Thief 12450 | -6/Proximity Caves | Allies destroyed OF-8KK(f) 12522 | -6/Proximity Caves | Spotted 51-O8R(f) 12523 | -6/Proximity Caves | Encountered a Master Thief 12524 | -6/Proximity Caves | Spotted TO-Q5E(f) 12525 | -6/Proximity Caves | Encountered a Master Thief 12535 | -6/Proximity Caves | Deploy-a-Sentry stolen by Master Thief 12536 | -6/Proximity Caves | Allies destroyed 51-O8R(f) 12560 | -6/Proximity Caves | Attracted the attention of an 0b10 checkpoint 12732 | -6/Proximity Caves | Discovered new exit (range 7) 12738 | -6/Proximity Caves | Identified exit to Factory 12754 | -6/Proximity Caves | Entered Factory 12754 | -6/Factory | Accompanied by 2 allies 12754 | -6/Factory | Evolved 2 slots: Utility x2 12755 | -6/Factory | Identified exit to Factory 12755 | -6/Factory | Identified exit to Lower Caves 12883 | -6/Factory | Retrieved Zion intel report: Prototype Schematics 12989 | -6/Factory | Retrieved Zion intel report: Depthwide Sectors/0 12990 | -6/Factory | Zion Fire squad teleported in 13210 | -6/Factory | Spotted B-75 Beast 13228 | -6/Factory | Allies destroyed B-75 Beast 13278 | -6/Factory | Discovered exit to Factory (range 10) 13281 | -6/Factory | Zion Heavy squad teleported in 13331 | -6/Factory | Entered Lower Caves 13331 | -6/Lower Caves | Accompanied by 4 allies 13343 | -6/Lower Caves | Encountered a Warlord checkpoint 13367 | -6/Lower Caves | Identified exit to Lower Caves 13435 | -6/Lower Caves | Spotted GH-4RO(f) 13436 | -6/Lower Caves | Encountered a Master Thief 13436 | -6/Lower Caves | Allies destroyed GH-4RO(f) 13437 | -6/Lower Caves | Spotted RK-GTJ(f) 13438 | -6/Lower Caves | Encountered a Master Thief 13440 | -6/Lower Caves | Allies destroyed RK-GTJ(f) 13592 | -6/Lower Caves | Entered another Lower Caves area 13592 | -6/Lower Caves | Accompanied by 3 allies 13619 | -6/Lower Caves | Found Zio. Weapon Casing 13800 | -6/Lower Caves | Spotted X7-W4E(f) 13801 | -6/Lower Caves | Encountered a Master Thief 13808 | -6/Lower Caves | Allies destroyed X7-W4E(f) 13821 | -6/Lower Caves | Discovered new exit (range 14) 13838 | -6/Lower Caves | Entered Data Miner 13838 | -6/Data Miner | Accompanied by 1 ally 13838 | -6/Data Miner | Discovered new exit (range 6) 13859 | -6/Data Miner | Met Data Miner 13878 | -6/Data Miner | Learned location of Section 7 (-2) 13878 | -6/Data Miner | Acquired the access code to Warlord's prototype stash 13896 | -6/Data Miner | Received God Mode back door access code from Data Miner 13927 | -6/Data Miner | Entered Proximity Caves 13927 | -5/Proximity Caves | Accompanied by 1 ally 14023 | -5/Proximity Caves | Escorted by Enhanced Grunt 14095 | -5/Proximity Caves | Learned Factory terminal intel 14157 | -5/Proximity Caves | Discovered exit to Factory (range 2) 14168 | -5/Proximity Caves | Entered Factory 14168 | -5/Factory | Accompanied by 2 allies 14168 | -5/Factory | Evolved 2 slots: Utility x2 14169 | -5/Factory | Loaded intel: 21 terminal locations 14242 | -5/Factory | Retrieved Zion intel report: Unaware Analyses 14263 | -5/Factory | Retrieved Zion intel report: Prototype Schematics 14264 | -5/Factory | Zion Infowar Resupply teleported in 14279 | -5/Factory | Found Exp. Signal Interpreter 14447 | -5/Factory | Fabricated Mni. Smartbomb Launcher (x1) 14531 | -5/Factory | Discovered new exit (range 13) 14627 | -5/Factory | Identified Exp. Core Analyzer (x2) 14627 | -5/Factory | Identified Exp. Terrain Scan Processor 14637 | -5/Factory | Discovered new exit (range 22) 14700 | -5/Factory | Identified exit to Upper Caves 14703 | -5/Factory | Entered Upper Caves 14703 | -5/Upper Caves | Accompanied by 2 allies 14897 | -5/Upper Caves | Learned Factory emergency access door positions 14939 | -5/Upper Caves | Discovered new exit (range 9) 14957 | -5/Upper Caves | Learned location of 1 exit from Factory 15000 | -5/Upper Caves | Identified exit to Upper Caves 15242 | -5/Upper Caves | Entered another Upper Caves area 15242 | -5/Upper Caves | Accompanied by 2 allies 15323 | -5/Upper Caves | Spotted B-75 Beast 15332 | -5/Upper Caves | Allies destroyed B-75 Beast 15424 | -5/Upper Caves | Discovered new exit (range 11) 15435 | -5/Upper Caves | Identified exit to Warlord 15438 | -5/Upper Caves | Entered Warlord 15438 | -5/Warlord | Accompanied by 2 allies 15478 | -5/Warlord | System corruption cleaned by Quarantine Array 15597 | -5/Warlord | Received a Watcher feed algorithm from an ecstatic Tinkerer 15655 | -5/Warlord | Build established: Messiah-Skirmisher 15773 | -5/Warlord | Visited the Vortex Lab 15783 | -5/Warlord | Found Prototype Energy Cannon 15783 | -5/Warlord | Identified Vortex Cannon 15789 | -5/Warlord | Warlord's base attacked by MAIN.C 15792 | -5/Warlord | Found Prototype Launcher 15879 | -5/Warlord | Rebuked by Warlord 15894 | -5/Warlord | Opened Warlord's prototype stash 15901 | -5/Warlord | Found Prototype Reactor 15905 | -5/Warlord | Found Prototype Device 15905 | -5/Warlord | Identified Exp. Phase Shifter 15924 | -5/Warlord | Found Prototype Processor 16069 | -5/Warlord | Opened side exit 16098 | -5/Warlord | Discovered new exit (range 10) 16109 | -5/Warlord | Identified exit to Proximity Caves 16111 | -5/Warlord | Entered Proximity Caves 16111 | -4/Proximity Caves | Accompanied by 2 allies 16217 | -4/Proximity Caves | Build established: Messiah-Mutant 16239 | -4/Proximity Caves | Spotted L8-CZ3(f) 16240 | -4/Proximity Caves | Encountered a Master Thief 16243 | -4/Proximity Caves | Deploy-a-Sentry stolen by Master Thief 16245 | -4/Proximity Caves | Allies destroyed L8-CZ3(f) 16506 | -4/Proximity Caves | Learned location of 1 exit from Research 16514 | -4/Proximity Caves | Spotted YR-5LD(f) 16515 | -4/Proximity Caves | Encountered a Master Thief 16515 | -4/Proximity Caves | Spotted V8-96F(f) 16516 | -4/Proximity Caves | Encountered a Master Thief 16517 | -4/Proximity Caves | Deploy-a-Sentry stolen by Master Thief 16518 | -4/Proximity Caves | Destroyed V8-96F(f) 16520 | -4/Proximity Caves | Allies destroyed YR-5LD(f) 16582 | -4/Proximity Caves | Spotted KV-LUT(f) 16583 | -4/Proximity Caves | Destroyed KV-LUT(f) 16590 | -4/Proximity Caves | Spotted LV-OPF(f) 16591 | -4/Proximity Caves | Encountered a Master Thief 16593 | -4/Proximity Caves | Destroyed LV-OPF(f) 16617 | -4/Proximity Caves | Discovered new exit (range 11) 16629 | -4/Proximity Caves | Identified exit to Factory 16630 | -4/Proximity Caves | Entered Factory 16630 | -4/Factory | Accompanied by 2 allies 16630 | -4/Factory | Evolved 2 slots: Utility x2 16631 | -4/Factory | Identified exit to Research 16676 | -4/Factory | Garrison activated, responded to threat 17181 | -4/Factory | Garrison activated, responded to threat 17198 | -4/Factory | Discovered new exit (range 24) 17217 | -4/Factory | Lost 4 parts (1n2u1w) 17257 | -4/Factory | Identified exit to Upper Caves 17284 | -4/Factory | Retrieved Zion intel report: Prototype Schematics 17285 | -4/Factory | Zion Fire squad teleported in 17297 | -4/Factory | Entered Upper Caves 17297 | -4/Upper Caves | Accompanied by 5 allies 17629 | -4/Upper Caves | Discovered new exit (range 5) 17633 | -4/Upper Caves | Identified exit to Upper Caves 17641 | -4/Upper Caves | Learned location of Testing (-2) 17669 | -4/Upper Caves | Identified Vortex Chain Reactor 17684 | -4/Upper Caves | Identified Exp. Armor Integrity Analyzer 17692 | -4/Upper Caves | Identified Vortex Catalyst Activator 17695 | -4/Upper Caves | Entered another Upper Caves area 17695 | -4/Upper Caves | Accompanied by 4 allies 17720 | -4/Upper Caves | Discovered exit to Research (range 3) 17899 | -4/Upper Caves | Encountered a Warlord checkpoint 17901 | -4/Upper Caves | Discovered new exit (range 15) 17918 | -4/Upper Caves | Identified exit to Zhirov 18001 | -4/Upper Caves | Entered Zhirov 18001 | -4/Zhirov | Accompanied by 4 allies 18001 | -4/Zhirov | Discovered new exit (range 3) 18003 | -4/Zhirov | Identified exit to Proximity Caves 18025 | -4/Zhirov | Met Zhirov 18054 | -4/Zhirov | Learned location of Quarantine (-3) 18054 | -4/Zhirov | Learned location of Command (-1) 18078 | -4/Zhirov | Zhirov requested help retrieving the SGEMP Prototype 18100 | -4/Zhirov | Found Alien Artifact 18100 | -4/Zhirov | Identified Integrated Reactor 18100 | -4/Zhirov | Installed Integrated Reactor, increased core energy generation (+2%) 18122 | -4/Zhirov | Found Alien Artifact 18343 | -4/Zhirov | Entered Proximity Caves 18343 | -3/Proximity Caves | Accompanied by 4 allies 18471 | -3/Proximity Caves | Spotted HJ-QD2(f) 18472 | -3/Proximity Caves | Encountered a Master Thief 18476 | -3/Proximity Caves | Allies destroyed HJ-QD2(f) 18611 | -3/Proximity Caves | Spotted J4-40O(f) 18612 | -3/Proximity Caves | Spotted BG-8Q3(f) 18613 | -3/Proximity Caves | Encountered a Master Thief 18613 | -3/Proximity Caves | Encountered a Master Thief 18620 | -3/Proximity Caves | Deploy-a-Sentry stolen by Master Thief 18628 | -3/Proximity Caves | Alien Artifact stolen by Master Thief 18636 | -3/Proximity Caves | Spotted MI-0AC(f) 18636 | -3/Proximity Caves | Spotted PQ-QZF(f) 18638 | -3/Proximity Caves | Encountered a Master Thief 18639 | -3/Proximity Caves | Encountered a Master Thief 18640 | -3/Proximity Caves | Vortex Chain Reactor stolen by Master Thief 18642 | -3/Proximity Caves | Destroyed PQ-QZF(f) 18648 | -3/Proximity Caves | Exp. Armor Integrity Analyzer stolen by Master Thief 18654 | -3/Proximity Caves | Spotted B4-OKV(f) 18656 | -3/Proximity Caves | Encountered a Master Thief 18657 | -3/Proximity Caves | Deploy-a-Sentry stolen by Master Thief 18725 | -3/Proximity Caves | Discovered exit to Research (range 21) 18776 | -3/Proximity Caves | Spotted NW-9NW(f) 18777 | -3/Proximity Caves | Encountered a Master Thief 18777 | -3/Proximity Caves | Spotted 5H-EJE(f) 18780 | -3/Proximity Caves | Encountered a Master Thief 18784 | -3/Proximity Caves | Exp. Phase Shifter stolen by Master Thief 18794 | -3/Proximity Caves | Exp. Energy Well stolen by Master Thief 18845 | -3/Proximity Caves | Entered Research 18845 | -3/Research | Accompanied by 2 allies 18845 | -3/Research | Evolved 2 slots: Utility x2 18846 | -3/Research | Identified exit to Armory 18847 | -3/Research | Identified exit to Research 18892 | -3/Research | Zion Infowar Resupply teleported in 18894 | -3/Research | Found Prototype Processor 18897 | -3/Research | Found Prototype Processor 18897 | -3/Research | Identified Spectral Analyzer (x2) 19064 | -3/Research | Found Fusion Bomb Launcher 19204 | -3/Research | Found Prototype Launcher 19231 | -3/Research | Identified Hellfire Missile Launcher 19419 | -3/Research | Lost 3 parts (1n2u) 19589 | -3/Research | Discovered new exit (range 5) 19594 | -3/Research | Identified exit to Quarantine 19595 | -3/Research | First assault squad dispatched 19655 | -3/Research | Entered Quarantine 19655 | -3/Quarantine | Accompanied by 1 ally 19674 | -3/Quarantine | Found Alien Artifact 19677 | -3/Quarantine | Found Alien Artifact 19700 | -3/Quarantine | Found Alien Artifact 19703 | -3/Quarantine | Found Alien Artifact 19705 | -3/Quarantine | Found Alien Artifact 19716 | -3/Quarantine | Found Alien Artifact 19823 | -3/Quarantine | Found Alien Slashing Weapon 19842 | -3/Quarantine | Found Alien Artifact 19842 | -3/Quarantine | Identified Stasis Generator 19959 | -3/Quarantine | Discovered exit to Research (range 4) 20006 | -3/Quarantine | Found Alien Artifact 20006 | -3/Quarantine | Identified Core Reset Matrix 20006 | -3/Quarantine | Identified Dimensional Node Initializer (x3) 20006 | -3/Quarantine | Identified Transdimensional Reconstructor (x2) 20006 | -3/Quarantine | Identified Hpw. Transdimensional Reconstructor 20006 | -3/Quarantine | Identified Sigix Broadsword 20006 | -3/Quarantine | Used Core Reset Matrix 20010 | -3/Quarantine | Detected hypermatrix surge 20010 | -3/Quarantine | Sensed 4 artifacts in vicinity 20024 | -3/Quarantine | Discovered exit to Research (range 10) 20072 | -3/Quarantine | Cryocooling Duct disabled 20087 | -3/Quarantine | Ambient heat levels rising (+20) 20087 | -3/Quarantine | Non-combat units ordered to evacuate 20126 | -3/Quarantine | Found Core Stripper 20324 | -3/Quarantine | Retrieved Zion intel report: Prototype Stockpiles 20405 | -3/Quarantine | First assault squad dispatched 20422 | -3/Quarantine | Retrieved Zion intel report: Unaware Schematics 20425 | -3/Quarantine | Incoming assault squad redirected 20426 | -3/Quarantine | Incoming assault squad redirected 20499 | -3/Quarantine | Retrieved Zion intel report: Component Stockpiles 20544 | -3/Quarantine | Found Core Cannon 20756 | -3/Quarantine | Entered Research 20756 | -2/Research | Accompanied by 1 ally 20756 | -2/Research | Evolved 2 slots: Utility x2 20829 | -2/Research | Discovered new exit (range 16) 20917 | -2/Research | Incoming investigation squad redirected 20943 | -2/Research | Identified exit to Testing 21061 | -2/Research | Entered Testing 21061 | -2/Testing | Accompanied by 1 ally 21295 | -2/Testing | Destroyed 7 combat bots 21298 | -2/Testing | Found Prototype Launcher 21304 | -2/Testing | Found Prototype Processor 21305 | -2/Testing | Identified Enh. Gamma Bomb Array 21311 | -2/Testing | Identified Exp. Target Analyzer 21330 | -2/Testing | Found Portable AFG 21384 | -2/Testing | Found Prototype Device 21423 | -2/Testing | Identified Exp. ECM Suite 21439 | -2/Testing | Found Prototype Hackware 21448 | -2/Testing | Identified Exp. Hacking Suite 21478 | -2/Testing | Found Prototype Hackware 21479 | -2/Testing | Identified Ghost Barrier 21521 | -2/Testing | Found Prototype Launcher 21522 | -2/Testing | Identified Tactical Quantum Warhead 21545 | -2/Testing | Spotted Striker 21547 | -2/Testing | Spotted Striker 21613 | -2/Testing | Stole the SGEMP Prototype 21823 | -2/Testing | Destroyed 8 combat bots 21824 | -2/Testing | Spotted Alpha 7 21840 | -2/Testing | First assault squad dispatched 21864 | -2/Testing | Incoming assault squad redirected 21995 | -2/Testing | Garrison activated, responded to threat 22075 | -2/Testing | Discovered new exit (range 17) 22078 | -2/Testing | High security lockdown imminent 22103 | -2/Testing | Identified exit to Access 22125 | -2/Testing | Entered Access 22125 | -1/Access | Accompanied by 1 ally 22125 | -1/Access | Evolved 2 slots: Power x1, Utility x1 22126 | -1/Access | Attacked by Zhirov 22132 | -1/Access | Destroyed Svarog 22141 | -1/Access | Destroyed Zhirov 22144 | -1/Access | Allies destroyed Perun 22147 | -1/Access | Found Exp. Terrain Scan Processor 22153 | -1/Access | Found Prototype Device 22153 | -1/Access | Identified Exp. Transmission Jammer 22165 | -1/Access | Lost 3 parts (1p1n1u) 22172 | -1/Access | Found Prototype Hackware 22196 | -1/Access | Found Prototype Hackware 22218 | -1/Access | Identified Deep Network Scanner 22219 | -1/Access | Identified Quantum Router 22256 | -1/Access | Repaired Centrium Medium Armor Plating 22270 | -1/Access | Repaired Arm. Huge Wheel 22412 | -1/Access | Core integrity fell below 50% 22423 | -1/Access | First assault squad dispatched 22541 | -1/Access | High security lockdown imminent 22621 | -1/Access | High security lockdown engaged 22783 | -1/Access | Emitted hypermatrix ping 22788 | -1/Access | Assembled emerged from beneath the floor 22804 | -1/Access | Spotted Striker 22806 | -1/Access | Core integrity fell below 20% 22808 | -1/Access | Warped through subspace 22839 | -1/Access | Spotted Executioner 22848 | -1/Access | Destroyed Executioner 22856 | -1/Access | Spotted Investigator 22856 | -1/Access | Scanned by Researcher 22863 | -1/Access | Warped through subspace 22863 | -1/Access | Spotted B-99 Colossus 22865 | -1/Access | Warped through subspace 22877 | -1/Access | Lost 4 parts (1p1u2w) 22882 | -1/Access | Destroyed 17 combat bots 22885 | -1/Access | Assembled emerged from beneath the floor 22895 | -1/Access | Core destroyed Last Messages --------------- 22862_ Slug penetrates Wall. 22863_ Acquired 12 matter. 22863_ Held in stasis. 22863_ Investigator is analyzing... 22863_ Warped through subspace. 22864_ O-32 Director distress signal jammed. 22864_ O-32 Director: "IFF HANDSHAKE FAILED. SECURING TERMINAL." 22865_ K-01 Serf cleans the Wave Collapse Detector. 22865_ Warped through subspace. 22866_ Detected hypermatrix ping. 22869_ W-44 Eye destroyed. 22871_ Acquired 30 matter. 22874_ Acquired Adv. Sensor Array. 22877_ System corrupted: Substantial component data lost. 22885_ Assembled emerge from beneath the floor. 22886_ Player 2 held in stasis. 22890_ G-73 Enforcer knocked back. 22891_ ALERT: Heavy assault forces dispatched. 22892_ G-73 Enforcer knocked back. 22894_ G-73 Enforcer destroyed. Map ----- +----------------------------------------------------+ | ???????????????# ??????????? | | ???????????????##### ??????????? | | ???????????????????#+## ??????????? | | ??????????????????????# ??????????? | | ??????????????????????# ??????????? | | ??????????????????????# """ #?????????? | | ??????????????????????# ""T"" ?????????? | | ??????????????????????+ g"" "" ?????????? | | ??????????????????????#c %[ ?????????? | | ?????????????????????## g g ?????????? | | ?????????????????????# ?????????? | | ?????????????????????# ?????????? | | ?????????????????????+ @ ? ?????????? | | ?????????????????????# #??BB##########????? | | ?????????????????????? #??BB# #????? | | ??????????????????????# #????# #????? | | ??????????????????????# #????# " #????? | | ??????????????????????# ###### """ #????? | | ??????????????????????# # """ #????? | | ??????????????????????# aa # " #????? | | ??????????????????????# a # ?????? | | ??????????????????????# a # ???????? | | ??????????????????????# # ?????????? | | ??????????????????????# a ##+###????????? | | ??????????????????????# =! #????????? | | ??????????????????????# @ a =%! #????????? | | ??????????????????????# * #????????? | | ????????????????###+??# a #????????? | | ????????????????# # R #????????? | | ???????????###### ##???????? | | ????? ! !a +????? | | ????? ###### ##########????? | | ????????????????# ########+##?????????????? | | ????????????????### ##?????? ?????????????? | | ??????????????????# ??????# ???????????? | | ??????????????????#???????# #??????????? | | ??????????????????????????# #??????????? | | ??????????????????????????# #??????????? | | ??????????????????????????# ! #??????????? | | ??????????????????????????# #??????????? | | ??????????????????????????# = #??????????? | | ??????????????????????????# #??????????? | | ??????????????????????????##########??????????? | | ??????????????????????????????????????????????? | | ??????????????????????????????????????????????? | | ??????????????????????????????????????????????? | | ??????????????????????????????????????????????? | | ??????????????????????????????????????????????? | | ??????????????????????????????????????????????? | | ??????????????????????????????????????????????? | +----------------------------------------------------+ Best States ------------- Heat Dissipation 115 Energy Generation 85 Energy Capacity 1310 Matter Stores 300 Matter Capacity 300 Sight Range 24 Robot Scan Range 22 Terrain Scan Range 24 Terrain Scan Density 1010 Jamming Range 22 Base Temperature (-) 200 Corruption Prevention 20 Armor Coverage 825 Resistance: KI 30 Resistance: EM 15 Core Shielding 30 Phase Shifting 20 Evasion (%) 60 Targeting Accuracy 12 Armor Integrity Analysis 66 Recoil Reduction 2 Energy Filtering 50 Offensive Hacking 41 Defensive Hacking 25 Item Schematics ----------------- None Robot Schematics ------------------ K-01 Serf | -3/Quarantine | Z-intel S-43 Plague | -3/Quarantine | Z-intel M-30 Cleanser | -3/Quarantine | Z-intel G-67 Veteran | -3/Quarantine | Z-intel B-74 Champion | -3/Quarantine | Z-intel Fabricated ------------ Mni. Smartbomb Launcher | x1 | -5/Factory Alien Tech Used ----------------- Integrated Reactor Stasis Generator Core Reset Matrix Core Cannon Core Stripper High-powered Transdimensional Reconstructor Transdimensional Reconstructor Achievements -------------- None Challenges ------------ None Player 2 | -11 -10 -10 -10 -9 -8 -7 -7 -7 -7 -6 -6 -6 -6 -6 -5 -5 -5 -5 -5 -4 -4 -4 -4 -4 -3 -3 -3 -2 -2 -1 ---------- Run | Scr Mat Min Exi Min Mat Fac Low Low Zio Pro Fac Low Low Dat Pro Fac Upp Upp War Pro Fac Upp Upp Zhi Pro Res Qua Res Tes Acc Slots Evolved 18 | . . . . 4 2 . . . . 2 . . . . 2 . . . . 2 . . . . 2 . 2 . 2 . Power . | . . . . . . . . . . . . . . . . . . . . . . . . . . . . . . . Propulsion 5 | . . . . 3 . . . . . . . . . . 1 . . . . . . . . . . . . . 1 . Utility 10 | . . . . . 1 . . . . 2 . . . . 1 . . . . 1 . . . . 2 . 2 . 1 . Weapon 3 | . . . . 1 1 . . . . . . . . . . . . . . 1 . . . . . . . . . . Parts Attached 188 | . 7 2 . 1 39 8 . . . . 6 2 4 . . 6 . 1 4 . 13 . 1 . 4 17 11 2 31 29 Parts Lost 60 | . . . . . 7 . . . . . 1 . . . . . . . . . 1 . . . 2 3 3 . 15 28 Damage Taken 11622 | . . 109 . 137 773 58 . 27 . 86 504 56 180 . 240 . 15 . . 48 1088 89 68 . 941 556 905 . 2604 3138 Core 1560 | . . 21 . 30 145 13 . . . 39 90 . 35 . 39 . . . . . 103 . . . 29 54 176 . 120 666 Player 2/Cogmind (%) 63 | . . 39 . 100 67 17 . . . 27 66 . 81 . 100 . . . . . 45 . . . 46 37 90 . 62 80 Absorbed by Shields 85 | . . . . . . . . . . . . . . . . . . . . . . . . . . . . . . 85 Damage Inflicted 24697 | . 34 66 . 50 631 708 . 261 30 622 1521 167 278 . 160 137 146 57 . 699 2259 245 . . 1448 1941 2756 . 4402 6079 Player 2/Cogmind (%) 40 | . 20 15 . 11 25 25 . 49 100 46 63 27 23 . 54 27 27 32 . 19 45 17 . . 42 47 45 . 45 42 Combat Hostiles Destroyed 98 | . . 4 . 3 4 3 . 3 . 2 2 2 3 . 1 1 1 . . 1 5 1 . . 6 5 11 . 15 25 Player 2/Cogmind (%) 32 | . . 50 . 50 22 13 . 75 . 66 33 50 27 . 50 50 33 . . 5 23 20 . . 50 41 39 . 32 39 Game ------ Seed ParticleDispersionArmor Manual? 0 Play Time 05:08:33 Cumulative 1196.2 hours Start 2020.05.27 @ 23:53:19 End 2020.05.29 @ 21:42:35 Sessions 6 Manual Loads 0 Difficulty Rogue Special Mode AFD2020/Player2 Game No. 397 Rogue 397 Adventurer 0 Explorer 0 Win Type - Total 256 Types 214/7/14/4/3/2/12 Lore% 99 Gallery% 101 Achievement% 94 Wizard Run 0 Options --------- ASCII 0 Keyboard 0 Movement Numpad Keybinds 0 Fullscreen 1 Font 18/Terminus Map View 76x50 Tactical HUD 1 Map Filters NONE Filters NONE Steam 1 RUN: e50536b6-fdf7-4cc1-8253-6dc4140f2153